{"text_format":"1","workbook":"xlsx","n_sheets":2,"sheets":["Quote Request","control"],"not_rendered":{"charts":0,"images":4,"macros":1,"external_links":1,"defined_names":16,"comments":1,"pivot_tables":0},"unopened":[],"bounds":{"document_bytes":16777216,"sheet_cells":100000,"rows_first":2000,"rows_last":500,"rows_between":2000,"halvings":0,"cell_chars":16384,"cell_head_chars":4096},"cells_cut":0,"cells_raw":0,"read":"whole","date_system":"1900"}

{"sheet":"Quote Request","index":0,"n_rows":47,"n_cols":7,"rows_kept":47,"cut":false,"hidden":false,"merged":[[27,5,28,5],[3,3,3,6],[7,2,7,3],[11,2,11,3],[12,2,12,3],[13,2,13,3],[15,2,15,3],[17,2,17,3],[20,2,20,3],[19,5,20,5],[25,2,25,3],[10,2,10,3],[38,2,38,3],[44,2,44,3],[29,5,32,5],[34,2,34,3],[34,5,35,5],[35,2,35,3],[37,2,37,3],[30,2,31,3]]}
[]
[null,null,null,null,null,null,"* Mandatory Fields"]
[null,null,null,null,null,"Zebra Technologies Quote Request"]
[]
[null,null,null,"Reseller:",null,null,"*"]
[]
[null,null,null,"End User:"]
[null,null,"Media Type:",null,null,null,"*"]
[null,null,null,"Printer Model:",null,null,"*"]
[null,null,null,"Sensing Method:",null,null,"*"]
[null,null,"Product Type:",null,null,null,"*"]
[null,null,"Print Technology:",null,null,null,"*"]
[null,null,"Chemical Resistance:",null,null,null,"*"]
[null,null,"Environment - Indoor/Outdoor:",null,null,null,"*"]
[]
[null,null,"Exposure Temperature - Min:"]
[]
[null,null," Exposure Temperature - Max:"]
[]
[]
[null,null,"Surface Type:",null,null,null,"*"]
[]
[null,null,null,"Width:",null,null,"*"]
[]
[null,null,null,"Length:",null,null,"*"]
[null,null,"Perforations Between Labels?",null,null,null,"*"]
[]
[]
[]
[null,null,null,"Application and media spec notes:",null,null,"*"]
[null,null,"If samples are available please contact your Sales Quote Specialist for mailing instructions."]
[]
[]
[]
[null,null,"# of Labels /Tags Annually:",null,null,null,"*"]
[]
[]
[null,null,"Annual Ordering Schedule:",null,null,null,"*"]
[null,null,"State shipping to:",null,null,null,"*"]
[]
[null,null,null,"If Multiple list States:"]
[]
[null,null,null,null,null,"Reference map to the right for \nSpecialist in your Territory"]
[]
[null,null,"Email List:",null,null,null,"*"]
[]
[null,null,null,null,null,{"$f":"INDEX(EmailLst,EmlSlct-1,1)","v":{"$error":"#VALUE!"}}]

{"sheet":"control","index":1,"n_rows":185,"n_cols":9,"rows_kept":185,"cut":false,"hidden":true,"merged":[]}
["Choose the media you need:","Select","Reseller:",{"$f":"'Quote Request'!F5","v":0},"F5","on"]
[null,"Label","End User",{"$f":"'Quote Request'!F7","v":0},"F7","off"]
[null,"Tag","Media Type:",{"$f":"IF(G3=1,0,G3)","v":0},"F8","on",1]
[null,"Receipt","Printer Model:",{"$f":"IF(G4=1,0,G4)","v":0},"F9","on",1]
[null,"Wristband","Sensing Method:",0,"F10","on",1]
[null,null,"Product Type:",0,"F11","on",1]
["Printer Model:","Select","Print Technology:",0,"F12","on",1]
[null,"Industrial","Chemical Resistance:",0,"F13","on",1]
[null,"Desktop","Environment - Indoor/Outdoor:",0,"F14","on",1]
[null,"EM220","Exposure Temperature - Min:",{"$f":"'Quote Request'!F16","v":0},"F16","off"]
[null,"EM220II","Exposure Temperature - Max:",{"$f":"'Quote Request'!F18","v":0},"F18","off"]
[null,"iMZ220","Surface Type:",{"$f":"IF(G12=1,0,G12)","v":0},"F21","on",1]
[null,"iMZ320","Width:",{"$f":"'Quote Request'!F23","v":0},"F23","on"]
[null,"MZ220","Length:",{"$f":"'Quote Request'!F25","v":0},"F25","on"]
[null,"MZ320","Perforations Between Labels?",{"$f":"IF(G15=1,0,G15)","v":0},"F26","on",1]
[null,"P4T","Notes:",{"$f":"'Quote Request'!F30","v":0},"F30","on"]
[null,"PA400","Label/Tag Quantity:",{"$f":"'Quote Request'!F35:F36","v":0},"F35","on"]
[null,"PA403","Ordering Schedule:",{"$f":"IF(G18=1,0,G18)","v":0},"F38","on",1]
[null,"PT400","State shipping to:",0,"F40","on",1]
[null,"PT403","Email List:",0,"F44","on",1]
[null,"QL220",null,null,null,"off"]
[null,"QLn220",null,null,null,"off"]
[null,"QL220Plus",null,null,null,"off"]
[null,"QL320",null,null,null,"off"]
[null,"QLn320",null,null,null,"off"]
[null,"QL320Plus",null,null,null,"off"]
[null,"QL420",null,null,null,"off"]
[null,"QLn420",null,null,null,"off"]
[null,"QL420Plus",null,null,null,"off"]
[null,"RP4T",null,null,null,"off"]
[null,"RW220",null,null,null,"off"]
[null,"RW420",null,null,null,"off"]
[null,"ZQ110",null,null,null,"off"]
[null,"ZQ510",null,null,null,"off"]
[null,"ZQ520",null,null,null,"off"]
[null,"Mobile .75\" Core",null,null,null,"off"]
[null,"Mobile 1\" Core",null,null,null,"off"]
[null,"Kiosk ",null,null,null,"off"]
[null,"Pax",null,null,null,"off"]
[null,null,null,null,null,"off"]
[]
[]
["Sensing Method","Select"]
[null,"Gap"]
[null,"Notches/Slot"]
[null,"Black Mark"]
[null,"Continuous"]
[]
[]
[]
[]
[]
["Print Technology:","Select"]
[null,"Direct Thermal (No Ribbon Required) Rolls"]
[null,"Thermal Transfer (Ribbon Required) Rolls"]
[null,"Direct Thermal (No Ribbon Required) Fanfold"]
[null,"Thermal Transfer (Ribbon Required) Fanfold"]
[]
["What chemicals does the printed image need to resist?",1]
[null,"Select"]
[null,"None"]
[null,"Minimal (blood, Windex, body fluids)"]
[null,"Moderate (ammonia, bleach, IPA)"]
[null,"Harsh (gasoline, grease, oil)"]
[null,"Extreme (acetone, MEK, xylene, TCE)"]
["Once Printed, in what environment will the media be used?","Select"]
[null,"Indoors, up to 1 year"]
[null,"Indoors, 1+ year"]
[null,"Outdoors, up to 1 year"]
[null,"Outdoors, up to 3 years"]
[null,"Outdoors, 3+ years"]
[]
["Surface","Select"]
[null,"Non-Adhesive"]
[null,"Corrugated"]
[null,"Curved"]
[null,"Glass"]
[null,"Machinery"]
[null,"Metal"]
[null,"Painted Metal"]
[null,"Plastic"]
[null,"Plastic Wrap"]
[null,"Powder Coated"]
[null,"Raw Metal"]
[null,"Rough"]
[null,"Smooth"]
[null,"Wood"]
[]
["Minimum Temperature"]
[]
["Maximum Temperature"]
[]
["Width:"]
["Length:"]
[]
[]
["Perforations between labels?","Select"]
[null,"Yes"]
[null,"No"]
[]
[]
["Rolls/Tags:","Select"]
[null,"Rolls"]
[null,"Labels"]
[null,"Tags"]
[]
[]
["States:","Select"]
[null,"Latin America"]
[null,"Multiple States"]
[null,"Alabama"]
[null,"Alaska"]
[null,"Arizona"]
[null,"Arkansas"]
[null,"California"]
[null,"Colorado"]
[null,"Connecticut"]
[null,"Delaware"]
[null,"Florida"]
[null,"Georgia"]
[null,"Hawaii"]
[null,"Idaho"]
[null,"Illinois"]
[null,"Indiana"]
[null,"Iowa"]
[null,"Kansas"]
[null,"Kentucky"]
[null,"Louisiana"]
[null,"Massachusetts"]
[null,"Maine"]
[null,"Michigan"]
[null,"Maryland"]
[null,"Minnesota"]
[null,"Mississippi"]
[null,"Missouri"]
[null,"Montana"]
[null,"Nebraska"]
[null,"Nevada"]
[null,"New Hampshire"]
[null,"New Jersey"]
[null,"New Mexico"]
[null,"New York"]
[null,"North Carolina"]
[null,"North Dakota"]
[null,"Ohio"]
[null,"Oklahoma"]
[null,"Oregon"]
[null,"Pennsylvania"]
[null,"Rhode Island"]
[null,"South Carolina"]
[null,"South Dakota"]
[null,"Tennessee"]
[null,"Texas"]
[null,"Utah"]
[null,"Vermont"]
[null,"Virginia"]
[null,"Washington"]
[null,"West Virginia"]
[null,"Wisconsin"]
[null,"Wyoming"]
[]
[null,null,null,null,null,null,"Territory"]
[null,"   ----------","Select",{"$f":"EmailSlctd","v":"   ----------"},null,null,"Alaska","Lyse Belcina"]
["Sales Specialist","ERichmond@zebra.com ","Beth Richmond ",null,null,null,"California","David Levington"]
[null,"CFigueroa@zebra.com","Clarisa Figueroa",null,null,null,"Canada","Laurel Hertel"]
[null,"DLevinson@zebra.com","David Levinson",null,null,null,"Central West","David Levinson"]
[null,"Kbreneisen@zebra.com","Kelly Breneisen",null,null,null,"Great Lakes","Clarisa Figueroa","Michael Doyle"]
[null,"LHertel@zebra.com","Laurel Hertel",null,null,null,"New England","Beth Richmond"]
[null,"LBelcina@zebra.com","Lyse Belcina",null,null,null,"North Central","Michael Doyle"]
[null,"Mdoyle@zebra.com","Mike Doyle",null,null,null,"Northeast","Laurel Hertel","Beth Richmond"]
[null,"Mbenitez@zebra.com","Miguel Benitez - Nola / Sola",null,null,null,"Northwest","Lyse Belcina"]
[null,"Sbarbosa@zebra.com","Sara Barbosa - Brazil / Mexico",null,null,null,"South","Laurel Hertel"]
[null,"Select",null,null,null,null,"South Atlantic","Laurel Hertel"]
["Annual Ordering Schedule","One Time Usage",null,null,null,null,"Southwest","Lyse Belcina","David Levington"]
[null,"Weekly",null,null,null,null,"West Great Lakes","Clarisa Figueroa"]
[null,"Monthly"]
[null,"Quarterly"]
[]
[]
[]
["Product Type","Select"]
[null,"Paper "]
[null,"Synthetic"]
[null,"IQ Color"]
[null,"Wristband"]